bitfinex-derivatives/quotes_BNBF0:USTF0_20250302
["timestamp","ask_amount","ask_price","bid_price","bid_amount"]
[1740924935144,2.54410063,604.06,604.05,0.548]
[1740924935346,4.13807615,604.06,604.05,0.548]
[1740924935751,2.70511028,604.06,604.05,0.548]
[1740924937251,2.70303322,604.06,604.05,0.548]
[1740924938049,4.12715021,604.06,604.05,0.548]
[1740924939451,4.1252489,604.06,604.05,0.548]
[1740924940951,2.70303322,604.06,604.05,0.548]
[1740924941152,4.12146845,604.06,604.05,0.548]
[1740924942456,4.42590637,604.06,604.05,0.548]
[1740924942655,4.12146845,604.06,604.05,0.548]
[1740924943053,4.11886407,604.06,604.05,0.548]
[1740924943657,5.84806378,604.06,604.05,0.548]
[1740924944359,5.84806378,604.06,603.68,2.833]
[1740924944555,3.00772931,604.05,603.68,2.833]
[1740924944860,2.69866245,604.04,603.68,2.833]
[1740924945051,1.58752769,604.03,603.68,2.833]
[1740924945251,1.58752769,604.02,603.68,2.833]
[1740924945456,1.58752769,604.01,603.68,2.833]
[1740924945661,1.58752769,604.0,603.68,2.833]
[1740924945854,1.58752769,604.03,603.68,2.833]
[1740924946057,1.58752769,604.02,603.68,2.833]
[1740924946353,1.58752769,604.01,603.68,2.833]
[1740924946558,0.97398517,604.23,603.68,2.833]
[1740924946559,1.58752769,604.0,603.68,2.833]
[1740924946759,1.58752769,603.99,603.68,2.833]
[1740924946958,1.58752769,604.02,603.68,2.833]
[1740924947261,1.11113476,604.03,603.68,2.833]
[1740924947456,1.58752769,604.04,603.68,2.833]
[1740924947657,2.69866245,604.05,603.68,2.833]
[1740924947855,2.69866245,604.04,603.68,2.833]
[1740924948053,1.11113476,604.04,603.68,2.833]
[1740924948457,2.69674546,604.22,603.68,2.833]
[1740924948654,1.5856107,604.21,603.68,2.833]
[1740924948857,1.5856107,604.2,603.68,2.833]
[1740924949056,1.5856107,604.19,603.68,2.833]
[1740924949261,1.5856107,604.18,603.68,2.833]
[1740924949455,2.69674546,604.17,603.68,2.833]
[1740924949656,1.5856107,604.16,603.68,2.833]
[1740924949859,1.5856107,604.15,603.68,2.833]
[1740924950059,1.5856107,604.14,603.68,2.833]
[1740924950261,1.5856107,604.13,603.68,2.833]
[1740924950464,1.5856107,604.12,603.68,2.833]
[1740924950762,2.69674546,604.11,603.68,2.833]
[1740924950958,1.5856107,604.1,603.68,2.833]
[1740924951162,1.11113476,604.11,603.68,2.833]
[1740924951163,1.5856107,604.09,603.68,2.833]
[1740924951457,1.41845464,604.19,603.68,2.833]
[1740924951458,2.69674546,604.08,603.68,2.833]
[1740924951660,1.5856107,604.07,603.68,2.833]
[1740924951859,2.69674546,604.06,603.68,2.833]
[1740924952063,1.5856107,604.05,603.68,2.833]
[1740924952361,1.11113476,604.04,603.68,1.208]
[1740924952758,1.72931428,604.03,603.68,1.208]
[1740924953368,1.58426868,604.02,603.68,1.208]
[1740924953766,1.41724029,604.02,603.68,1.208]
[1740924954572,1.58410343,604.01,603.68,1.208]
[1740924954771,1.584169,604.0,603.68,1.208]
[1740924954966,1.584169,603.99,603.68,1.208]
[1740924955174,1.584169,603.98,603.68,1.208]
[1740924955368,1.584169,603.97,603.68,1.208]
[1740924955574,1.584169,603.96,603.68,1.208]
[1740924955775,1.11113476,604.01,603.68,1.208]
[1740924955776,1.584169,603.95,603.68,1.208]
[1740924955974,1.584169,604.0,603.68,1.208]
[1740924956173,1.584169,603.99,603.68,1.208]
[1740924956380,1.584169,603.98,603.68,1.208]
[1740924956575,1.584169,603.97,603.68,1.208]
[1740924956775,1.88865787,603.96,603.64,0.549]
[1740924956977,2.69461106,603.95,603.64,0.549]
[1740924957173,1.5834763,603.94,603.64,0.549]
[1740924957377,1.5834763,603.93,603.64,0.549]
[1740924957574,1.5834763,603.92,603.64,0.549]
[1740924957774,1.5834763,603.95,603.64,0.549]
[1740924957973,1.5834763,603.94,603.64,0.549]
[1740924958175,1.5834763,603.93,603.64,0.549]
[1740924958382,1.5834763,603.92,603.64,0.549]
[1740924958681,1.41721168,603.99,603.64,0.549]
[1740924958682,1.58350935,603.91,603.64,0.549]
[1740924958876,1.41668549,603.99,603.64,0.549]
[1740924958877,1.58350935,603.9,603.64,0.549]
[1740924959074,1.58350935,603.97,603.64,0.549]
[1740924959281,2.69464411,603.96,603.64,0.549]
[1740924959477,1.58350935,603.95,603.64,0.549]
[1740924959680,1.58350935,603.94,603.64,0.549]
[1740924959875,1.58350935,603.93,603.64,0.549]
[1740924960075,1.58350935,603.92,603.64,0.549]
[1740924960276,1.58350935,603.91,603.64,0.549]
[1740924960479,1.58350935,603.93,603.64,0.549]
[1740924960682,1.58350935,603.92,603.64,0.549]
[1740924960876,1.58350935,603.93,603.64,0.549]
[1740924961081,2.69464411,604.0,603.64,0.549]
[1740924961279,1.58350935,603.99,603.64,0.549]
[1740924961582,1.58350935,603.98,603.64,0.549]
[1740924961784,1.58350935,603.97,603.64,0.549]
[1740924961983,1.5834757,603.96,603.64,0.549]
[1740924962178,1.5834757,603.95,603.64,0.549]
[1740924962384,2.69461046,603.96,603.64,0.549]
[1740924962576,1.5834757,603.95,603.64,0.549]
[1740924962979,1.11113476,603.96,603.64,0.549]
[1740924962980,1.5834757,603.94,603.64,0.549]
[1740924963183,1.5834757,603.93,603.64,0.549]
[1740924963382,1.5834757,603.92,603.64,0.549]
[1740924963582,1.5834757,603.91,603.64,0.549]
[1740924963788,1.5834757,603.9,603.64,0.549]
[1740924963986,1.5834757,603.89,603.64,0.549]
[1740924964182,1.5834757,603.88,603.64,0.549]
[1740924964388,1.5834757,603.87,603.64,0.549]
[1740924964581,1.5834757,603.86,603.64,0.549]
[1740924964784,1.5834757,603.92,603.64,0.549]
[1740924964986,1.09798252,603.93,603.64,0.549]
[1740924964987,1.5834757,603.91,603.64,0.549]
[1740924965186,1.5834757,603.92,603.64,0.549]
[1740924965483,1.5834757,603.95,603.64,0.549]
[1740924965687,1.09798252,603.96,603.64,0.549]
[1740924966088,1.58474255,603.95,603.64,0.549]
[1740924966288,1.58474255,603.94,603.64,0.549]
[1740924966484,1.58474255,603.93,603.64,0.549]
[1740924966685,1.58474255,603.92,603.64,0.549]
[1740924966893,1.58474255,603.91,603.64,0.549]
[1740924967093,1.58474255,603.9,603.64,0.549]
[1740924967286,1.58474255,603.89,603.64,0.549]
[1740924967591,1.58474255,603.88,603.64,0.549]
[1740924967786,1.72962227,603.89,603.64,0.549]
[1740924968189,1.58474255,603.88,603.64,0.549]
[1740924968491,1.58474255,603.89,603.6,1.221]
[1740924968686,1.58474255,603.9,603.6,1.221]
[1740924968887,1.58474255,603.89,603.6,1.221]
[1740924969086,1.58474255,603.88,603.6,1.221]
[1740924969286,1.58474255,603.87,603.6,1.221]
[1740924969485,1.58474255,603.86,603.6,1.221]
[1740924969791,1.58474255,603.89,603.6,1.221]
[1740924969994,1.58474255,603.88,603.6,1.221]
[1740924970190,1.58474255,603.89,603.6,1.221]
[1740924971092,1.58474255,603.88,603.6,1.221]
[1740924971394,1.58474255,603.87,603.6,1.221]
[1740924971584,1.58474255,603.86,603.6,1.221]
[1740924971789,1.58474255,603.85,603.6,1.221]
[1740924971985,1.58474255,603.84,603.6,1.221]
[1740924972191,2.68272507,603.83,603.6,1.221]
[1740924972494,1.58474255,603.82,603.57,1.796]
[1740924972688,1.58474255,603.81,603.57,1.796]
[1740924972891,1.58474255,603.8,603.57,1.796]
[1740924973090,1.58474255,603.79,603.57,1.796]
[1740924973291,1.58474255,603.78,603.57,1.796]
[1740924973488,1.58474255,603.77,603.57,1.796]
[1740924973693,1.72990886,603.79,603.57,1.796]
[1740924973893,1.58474255,603.78,603.57,1.796]
[1740924974093,1.58474255,603.77,603.57,1.796]
[1740924974287,1.72990886,603.79,603.57,1.796]
[1740924974288,1.58474255,603.76,603.57,1.796]
[1740924974490,1.58474255,603.75,603.57,1.796]
[1740924974691,1.58474255,603.74,603.57,1.796]
[1740924974998,2.68272507,603.73,603.57,1.796]
[1740924975201,1.58474255,603.72,603.57,1.796]
[1740924975393,1.09798252,603.73,603.57,1.796]
[1740924975394,1.58474255,603.71,603.57,1.796]
[1740924975599,1.58474255,603.7,603.57,1.796]
[1740924975798,1.58474255,603.69,603.57,1.796]
[1740924976002,1.58474255,603.68,603.57,1.796]
[1740924976303,1.58474255,603.67,603.57,1.796]
[1740924976503,1.58474255,603.66,603.57,1.796]
[1740924976803,1.7300092,603.73,603.57,1.796]
[1740924977004,1.58474255,603.72,603.57,1.796]
[1740924977199,1.58474255,603.71,603.57,1.796]
[1740924977507,2.68432078,603.7,603.57,1.796]
[1740924977803,2.68432078,603.69,603.57,1.796]
[1740924978004,1.58633826,603.68,603.57,1.796]
[1740924978208,1.58633826,603.67,603.57,1.796]
[1740924978500,2.68432078,603.66,603.57,1.796]
[1740924978706,1.58633826,603.65,603.57,1.796]
[1740924978902,1.58633826,603.64,603.57,1.796]
[1740924979201,1.58633826,603.63,603.57,1.796]
[1740924979505,1.58634061,603.62,603.57,1.796]
[1740924979705,1.58634061,603.61,603.57,1.796]
[1740924979904,1.58634061,603.6,603.57,1.796]
[1740924980104,1.58634061,603.59,603.57,1.796]
[1740924980305,1.58634061,603.58,603.57,1.796]
[1740924981105,1.09798252,603.58,603.57,1.796]
[1740924981308,2.68392722,603.58,603.57,1.796]
[1740924981807,1.5859447,603.58,603.57,1.796]
[1740924982007,2.68392722,603.79,603.57,1.796]
[1740924982200,3.00496539,603.78,603.57,1.796]
[1740924982406,1.5859447,603.77,603.57,1.796]
[1740924982701,2.68392722,603.76,603.57,1.796]
[1740924982905,1.5859447,603.75,603.57,1.796]
[1740924983100,3.00496539,603.74,603.57,1.796]
[1740924983301,3.00496539,603.73,603.57,1.796]
[1740924983506,3.00496539,603.72,603.57,1.796]
[1740924983704,3.30977103,603.71,603.57,1.796]
[1740924983907,3.3097722,603.7,603.57,1.796]
[1740924984101,3.3097722,603.69,603.49,0.549]
[1740924984303,4.40775472,603.68,603.49,0.549]
[1740924984505,3.3097722,603.67,603.49,0.549]
[1740924984809,3.3097722,603.66,603.49,0.549]
[1740924985009,3.3097722,603.65,603.49,0.549]
[1740924985209,3.3097722,603.64,603.49,0.549]
[1740924985403,0.97388794,603.6,603.49,0.549]
[1740924985603,3.00496539,603.59,603.49,0.549]
[1740924985805,3.00496539,603.58,603.49,0.549]
[1740924986009,3.00496539,603.57,603.49,0.549]
[1740924986310,1.5859447,603.56,603.49,0.549]
[1740924986507,1.5859447,603.55,603.49,0.549]
[1740924986708,1.5859447,603.54,603.49,0.549]
[1740924987009,1.56044046,603.53,603.49,0.549]
[1740924987209,1.56044046,603.52,603.49,0.549]
[1740924987406,1.56044046,603.51,603.49,0.549]
[1740924987602,1.56044046,603.5,603.49,0.549]
[1740924988005,2.65842298,603.5,603.49,0.549]
[1740924988805,2.65842298,603.5,603.33,1.717]
[1740924989005,1.56044046,603.49,603.33,1.717]
[1740924989406,2.82871589,603.48,603.33,1.717]
[1740924989612,1.56044046,603.47,603.33,1.717]
[1740924989815,1.09798252,603.46,603.33,1.717]
[1740924990610,4.07755557,603.47,603.33,1.717]
[1740924990809,2.9794899,603.46,603.33,1.717]
[1740924991008,1.56041645,603.45,603.33,1.717]
[1740924991208,1.09798252,603.46,603.33,1.717]
[1740924992116,1.09798252,603.5,603.33,1.717]
[1740924992310,1.09798252,603.49,603.33,1.717]
[1740924992910,2.51714677,603.49,603.33,1.717]
[1740924993117,1.09798252,603.48,603.33,1.717]
[1740924993615,1.09798252,603.47,603.33,1.717]
[1740924994415,1.09798252,603.5,603.33,1.717]
[1740924994610,2.51697303,603.5,603.33,1.717]
[1740924994813,1.09798252,603.5,603.33,1.717]
[1740924995016,1.09798252,603.49,603.33,1.717]
[1740924995213,1.09798252,603.48,603.33,1.717]
[1740924995814,1.09798252,603.47,603.33,1.717]
[1740924996314,1.09798252,603.46,603.33,1.717]
[1740924996815,1.73074771,603.51,603.33,1.717]
[1740924996816,2.65831414,603.48,603.33,1.717]
[1740924997113,1.56033162,603.47,603.33,1.717]
[1740924997321,2.65831414,603.47,603.33,1.717]
[1740924997515,1.56033162,603.46,603.33,1.717]
[1740924997716,1.09798252,603.46,603.33,1.717]
[1740924998317,1.09798252,603.45,603.33,1.717]
[1740924998819,1.09798252,603.44,603.33,1.717]
[1740924999619,1.09798252,603.43,603.33,1.717]
[1740924999920,1.09798252,603.42,603.33,1.717]
[1740925000115,2.65831414,603.42,603.33,1.717]
[1740925000319,1.56033162,603.41,603.33,1.717]
[1740925000515,1.09798252,603.41,603.33,1.717]
[1740925000918,1.56033162,603.48,603.33,1.717]
[1740925000919,1.09798252,603.4,603.33,1.717]
[1740925001714,1.09798252,603.39,603.33,1.717]
[1740925002123,2.65831414,603.43,603.33,1.717]
[1740925002315,1.55994276,603.42,603.33,1.717]
[1740925002521,2.65792528,603.43,603.33,1.717]
[1740925003022,4.07651885,603.43,603.08,0.549]
[1740925003216,2.65792528,603.43,603.08,0.549]
[1740925003616,1.55994276,603.42,603.08,0.549]
[1740925003816,2.65792528,603.43,603.08,0.549]
[1740925004724,1.55994276,603.42,603.08,0.549]
[1740925004925,1.55994276,603.41,603.08,0.549]
[1740925005125,2.9785721,603.4,603.08,0.549]
[1740925005326,2.9785721,603.39,603.08,0.549]
[1740925005527,2.9785721,603.38,603.08,0.549]
[1740925005723,4.07655462,603.37,603.08,0.549]
[1740925005924,2.9785721,603.36,603.08,0.549]
[1740925006119,1.55994276,603.35,603.08,0.549]
[1740925006328,1.55994276,603.34,603.08,0.549]
[1740925006525,1.55994276,603.33,603.08,0.549]
[1740925006726,1.55994276,603.32,603.08,0.549]
[1740925006926,1.55994276,603.31,603.08,0.549]
[1740925007134,1.55994276,603.3,603.08,0.549]
[1740925007327,1.55994276,603.29,603.08,0.549]
[1740925007524,1.55994276,603.28,603.08,0.549]
[1740925007728,1.55994276,603.27,603.08,0.549]
[1740925008023,1.09798252,603.29,603.08,0.549]
[1740925008228,1.09798252,603.26,603.08,0.549]
[1740925008524,1.55801089,603.25,603.08,0.549]
[1740925008728,1.55801089,603.24,603.08,0.549]
[1740925008931,1.55801089,603.23,603.08,0.549]
[1740925009131,1.55801089,603.22,603.08,0.549]
[1740925009324,1.55801089,603.21,603.08,0.549]
[1740925009529,1.55801089,603.2,603.08,0.549]
[1740925009730,1.55801089,603.19,603.08,0.549]
[1740925009929,1.55801089,603.18,603.08,0.549]
[1740925010230,2.65599341,603.17,603.08,0.549]
[1740925010430,1.55801089,603.16,603.08,0.549]
[1740925010830,1.09798252,603.15,603.08,0.549]
[1740925011032,2.65599341,603.15,603.08,0.549]
[1740925011230,1.55801089,603.14,603.08,0.549]
[1740925011527,2.65599341,603.14,603.08,0.549]
[1740925011726,2.65599341,603.13,603.08,0.549]
[1740925011930,1.55801089,603.12,603.08,0.549]
[1740925012232,1.09798252,603.11,603.08,0.549]
[1740925012427,2.65599341,603.11,603.08,0.549]
[1740925012728,2.65599341,603.1,603.08,0.549]
[1740925012927,1.55801089,603.09,603.08,0.549]
[1740925013126,1.09798252,603.1,603.08,0.549]
[1740925013333,1.09798252,603.09,603.08,0.549]
[1740925014032,4.07120676,603.22,603.08,0.549]
[1740925014235,4.37613224,603.21,603.08,0.549]
[1740925014432,0.97152586,603.17,603.08,0.549]
[1740925014631,1.86195291,603.16,603.08,0.549]
[1740925014825,0.97127468,603.14,603.08,0.549]
[1740925015025,0.30492548,603.13,603.08,0.549]
[1740925015236,0.30492548,603.2,603.08,0.549]
[1740925015427,0.97143434,603.1,603.08,0.549]
[1740925015630,0.30492548,603.09,603.08,0.549]
[1740925015830,1.731968,603.19,603.08,0.549]
[1740925016032,0.97120086,603.16,603.08,0.549]
[1740925016226,3.27700837,603.18,603.08,0.549]
[1740925016227,3.27700837,603.15,603.08,0.549]
[1740925016430,3.27700837,603.14,603.08,0.549]
[1740925016634,4.07001078,603.13,603.08,0.549]
[1740925016837,2.97202826,603.12,603.08,0.549]
[1740925017034,1.55636552,603.11,603.08,0.549]
[1740925017232,1.55636552,603.1,603.08,0.549]
[1740925017626,1.09798252,603.09,603.08,0.549]
[1740925017828,2.65434804,603.09,603.08,0.549]
[1740925018426,1.09798252,603.09,603.08,0.549]
[1740925018631,2.82984996,603.09,603.08,0.549]
[1740925019830,4.38560475,603.09,603.08,0.549]
[1740925020034,5.80126749,603.09,602.99,1.575]
[1740925020235,4.06940005,603.08,602.99,1.575]
[1740925020432,1.55575479,603.07,602.99,1.575]
[1740925020633,1.55575479,603.06,602.99,1.575]
[1740925020834,1.55575479,603.05,602.99,1.575]
[1740925021040,1.09798252,603.06,602.99,1.575]
[1740925021335,1.09798252,603.05,602.99,1.575]
[1740925021730,1.09798252,603.04,602.99,1.575]
[1740925022130,2.65373731,603.04,602.99,1.575]
[1740925022330,2.65373731,603.03,602.99,1.575]
[1740925022635,1.55575479,603.02,602.99,1.575]
[1740925022836,1.09798252,603.07,602.99,1.575]
[1740925024531,2.65366986,603.16,602.99,1.575]
[1740925024738,1.5555536,603.15,602.99,1.575]
[1740925025036,1.73165199,603.21,602.99,1.575]
[1740925025438,1.09798252,603.2,602.99,1.575]
[1740925025639,2.65358669,603.2,602.99,1.575]
[1740925025835,1.55560417,603.19,602.99,1.575]
[1740925026036,4.06902304,603.2,602.99,1.575]
[1740925026634,1.09798252,603.19,602.99,1.575]
[1740925027232,1.09798252,603.18,602.99,1.575]
[1740925027735,4.06902304,603.19,602.99,1.575]
[1740925027933,2.65358669,603.18,602.99,1.575]
[1740925028133,1.55560417,603.17,602.99,1.575]
[1740925028739,1.09798252,603.19,602.99,1.575]
[1740925029136,2.65358669,603.2,602.99,1.575]
[1740925029338,4.07117977,603.2,602.99,1.575]
[1740925029534,2.65358669,603.2,602.99,1.575]
[1740925029734,4.07170723,603.2,602.99,1.575]
[1740925029935,2.65358669,603.2,602.99,1.575]
[1740925030136,1.09798252,603.2,602.99,1.575]
[1740925030734,2.51672348,603.34,602.99,1.575]
[1740925030933,2.65823303,603.34,602.99,1.575]
[1740925031136,1.56025051,603.33,602.99,1.575]
[1740925031338,1.56025051,603.32,602.99,1.575]
[1740925031538,1.56025051,603.33,602.99,1.575]
[1740925031738,1.09798252,603.31,602.99,1.575]
[1740925032136,2.65823303,603.31,602.99,1.575]
[1740925032440,2.65823303,603.3,602.99,1.575]
[1740925032641,1.56025051,603.29,602.99,1.575]
[1740925032841,1.09798252,603.3,602.99,1.575]
[1740925033045,1.09798252,603.28,602.99,1.575]
[1740925033342,1.41874096,603.35,602.99,1.575]
[1740925033343,1.09798252,603.27,602.99,1.575]
[1740925033843,1.09798252,603.26,602.99,1.575]
[1740925034045,1.56350035,603.29,602.99,1.575]
[1740925034341,2.985458,603.32,602.99,1.575]
[1740925034538,1.56350035,603.31,602.99,1.575]
[1740925034737,1.09798252,603.31,602.99,1.575]
[1740925035135,1.09798252,603.31,602.94,1.894]
[1740925035335,1.09798252,603.38,602.94,1.894]
[1740925035534,1.5647043,603.37,602.94,1.894]
[1740925035740,2.66268682,603.36,602.94,1.894]
[1740925035945,1.5647043,603.35,602.94,1.894]
[1740925036243,2.66268682,603.34,602.94,1.894]
[1740925036445,1.5647043,603.33,602.94,1.894]
[1740925036646,2.66268682,603.33,602.94,1.894]
[1740925036839,1.5647043,603.32,602.94,1.894]
[1740925037041,2.66268682,603.32,602.94,1.894]
[1740925037245,1.5647043,603.31,602.94,1.894]
[1740925037444,1.09798252,603.31,602.94,1.894]
[1740925037842,1.09798252,603.3,602.94,1.894]
[1740925038249,1.09798252,603.29,602.94,1.894]
[1740925038649,1.09798252,603.28,602.94,1.894]
[1740925039249,1.09798252,603.27,602.94,1.894]
[1740925039552,1.09798252,603.26,602.94,1.894]
[1740925039849,1.56616258,603.25,602.94,1.894]
[1740925040051,1.56616258,603.24,602.94,1.894]
[1740925040251,2.6641451,603.24,602.94,1.894]
[1740925040646,1.56616258,603.23,602.94,1.894]
[1740925040848,2.6641451,603.23,602.94,1.894]
[1740925041047,1.56616258,603.22,602.94,1.894]
[1740925041352,2.6641451,603.22,602.94,1.894]
[1740925041551,1.56616258,603.21,602.94,1.894]
[1740925041751,1.09798252,603.24,602.94,1.894]
[1740925042247,1.09798252,603.23,602.94,1.894]
[1740925042850,1.56616258,603.28,602.94,1.894]
[1740925043352,1.09798252,603.27,602.94,1.894]
[1740925043552,2.6641451,603.27,602.94,1.894]
[1740925043753,2.6641451,603.26,602.94,1.894]
[1740925044051,2.6641451,603.25,602.94,1.894]
[1740925044353,1.56616258,603.24,602.94,1.894]
[1740925044546,1.09798252,603.23,602.94,1.894]
[1740925045146,1.09798252,603.22,602.94,1.894]
[1740925045550,1.09798252,603.21,602.94,1.894]
[1740925045750,2.6641451,603.23,602.94,1.894]
[1740925045948,1.56616258,603.22,602.94,1.894]
[1740925046147,1.09798252,603.36,602.94,1.894]
[1740925046353,1.56787026,603.35,602.94,1.894]
[1740925046652,1.56787026,603.34,602.94,1.894]
[1740925046852,1.56787026,603.33,602.94,1.894]
[1740925047154,2.66585278,603.32,602.94,1.894]
[1740925047346,1.56787026,603.31,602.94,1.894]
[1740925047653,2.66585278,603.3,602.94,1.894]
[1740925047854,1.56787026,603.29,602.94,1.894]
[1740925048055,1.09798252,603.3,602.94,1.894]
[1740925048256,1.09798252,603.28,602.94,1.894]
[1740925048856,2.66585278,603.29,602.94,1.894]
[1740925049157,1.09798252,603.36,602.94,1.894]
[1740925049753,1.09798252,603.35,602.94,1.894]
[1740925050256,1.09798252,603.34,602.94,1.894]
[1740925050756,2.66695147,603.33,602.94,1.894]
[1740925051052,1.56896895,603.32,602.94,1.894]
[1740925051252,1.10566855,603.31,602.94,1.894]
[1740925052151,1.10566855,603.3,602.94,1.894]
[1740925052552,1.10566855,603.29,602.94,1.894]
[1740925052957,1.10566855,603.28,602.94,1.894]
[1740925053454,2.67449823,603.32,602.94,1.894]
[1740925053658,2.67449823,603.31,602.94,1.894]
[1740925053855,2.67449823,603.3,602.94,1.894]
[1740925054056,1.56882968,603.29,602.94,1.894]
[1740925054254,2.67449823,603.28,602.94,1.894]
[1740925054455,1.56882968,603.27,602.94,1.894]
[1740925054760,2.67496976,603.26,602.94,1.894]
[1740925054961,1.56930121,603.25,602.94,1.894]
[1740925055152,1.56925386,603.24,602.94,1.894]
[1740925055359,1.56925386,603.23,602.94,1.894]
[1740925055661,2.67492241,603.22,602.94,1.894]
[1740925055857,1.56925386,603.21,602.92,0.55]
[1740925056058,1.10566855,603.2,602.92,0.55]
[1740925056357,1.56925386,603.19,602.92,0.55]
[1740925056563,2.67492241,603.18,602.92,0.55]
[1740925056759,1.56925386,603.17,602.92,0.55]
[1740925056963,1.56948243,603.17,602.92,0.55]
[1740925057167,1.10622693,603.16,602.92,0.55]
[1740925057663,1.10622693,603.15,602.92,0.55]
[1740925057864,2.67570936,603.21,602.92,0.55]
[1740925058057,1.56948243,603.2,602.92,0.55]
[1740925058256,1.10622693,603.19,602.92,0.55]
[1740925058866,1.10622693,603.34,602.92,0.55]
[1740925059060,2.99758774,603.33,602.92,0.55]
[1740925059260,1.56986339,603.32,602.92,0.55]
[1740925059564,2.67609032,603.31,602.92,0.55]
[1740925059764,1.56986339,603.3,602.92,0.55]
[1740925059966,2.67609032,603.29,602.92,0.55]
[1740925060166,1.56986339,603.28,602.92,0.55]
[1740925060366,1.56986339,603.27,602.92,0.55]
[1740925060560,1.10622693,603.29,602.92,0.55]
[1740925060561,1.56986339,603.26,602.92,0.55]
[1740925060769,1.56986339,603.25,602.92,0.55]
[1740925061262,2.67609032,603.24,602.92,0.55]
[1740925061458,1.56986339,603.23,602.92,0.55]
[1740925061663,1.56986339,603.22,602.92,0.55]
[1740925062066,2.67609032,603.21,602.92,0.55]
[1740925062267,1.56986339,603.2,602.92,0.55]
[1740925062467,1.10622693,603.21,602.92,0.55]
[1740925062765,1.10622693,603.19,602.92,0.55]
[1740925062963,1.10622693,603.18,602.92,0.55]
[1740925063171,1.56986339,603.17,602.92,0.55]
[1740925063371,2.67609032,603.16,602.92,0.55]
[1740925063570,1.56986339,603.15,602.92,0.55]
[1740925063967,1.10622693,603.14,602.92,0.55]
[1740925064171,2.67609032,603.14,602.92,0.55]
[1740925064370,1.56986339,603.13,602.92,0.55]
[1740925064572,1.10622693,603.12,602.92,0.55]
[1740925065174,2.67594932,603.24,602.92,0.55]
[1740925065477,1.56972239,603.23,602.92,0.55]
[1740925065776,2.67594932,603.22,602.92,0.55]
[1740925065973,1.56972239,603.21,602.92,0.55]
[1740925066371,1.10622693,603.2,602.92,0.55]
[1740925066978,1.56965833,603.34,602.92,0.55]
[1740925067177,1.56965833,603.33,602.92,0.55]
[1740925067374,1.56965833,603.32,602.92,0.55]
[1740925067572,1.56965833,603.31,602.92,0.55]
[1740925067776,1.10622693,603.32,602.92,0.55]
[1740925067777,1.56965833,603.3,602.92,0.55]
[1740925067978,1.56965833,603.29,602.92,0.55]
[1740925068176,2.67588526,603.28,602.92,0.55]
[1740925068374,1.56965833,603.27,602.92,0.55]
[1740925068576,1.56964447,603.26,602.83,1.785]
[1740925068879,1.56964447,603.25,602.83,1.785]
[1740925069875,1.10622693,603.24,602.83,1.785]
[1740925070075,2.6758714,603.24,602.83,1.785]
[1740925070286,1.56987789,603.23,602.83,1.785]
[1740925070477,1.10622693,603.22,602.83,1.785]
[1740925071178,1.56996804,603.26,602.83,1.785]
[1740925071582,1.56996804,603.25,602.83,1.785]
[1740925071777,1.56996804,603.26,602.84,0.55]
[1740925071978,1.10622693,603.24,602.84,0.55]
[1740925072383,1.10622693,603.23,602.84,0.55]
[1740925072984,1.10622693,603.22,602.84,0.55]
[1740925073182,1.10622693,603.22,602.85,0.33175748]
[1740925073480,2.6765001,603.29,602.85,0.33175748]
[1740925073681,1.10622693,603.29,602.85,0.33175748]
[1740925073881,1.10622693,603.28,602.85,0.33175748]